[Event "Titled Tuesday Blitz June 28 Late 2022"]
[White "Prieto Aranguren, Alain"]
[Black "Petrovic, Aleksa"]
[WhiteFideId "2268906"]
[BlackFideId "967629"]
[WhiteElo "2224"]
[BlackElo "2117"]
[Result "1/2-1/2"]
[Round "06"]
[TimeControl "180+1"]
[Date "2022.06.29"]
[WhiteClock "0:00:05"]
[BlackClock "0:00:03"]

1. e4 {[%clk 0:02:58]}  c5 {[%clk 0:02:59]} 2. d4 {[%clk 0:02:56]}  cxd4 {[%clk 0:02:58]} 3. Bd3 {[%clk 0:02:54]}  Nc6 {[%clk 0:02:55]} 4. f4 {[%clk 0:02:54]}  d5 {[%clk 0:02:46]} 5. e5 {[%clk 0:02:53]}  Nh6 {[%clk 0:02:45]} 6. Bd2 {[%clk 0:02:52]}  Bf5 {[%clk 0:02:43]} 7. Nf3 {[%clk 0:02:34]}  e6 {[%clk 0:02:42]} 8. a4 {[%clk 0:02:28]}  Qb6 {[%clk 0:02:19]} 9. Na3 {[%clk 0:02:23]}  Bxa3 {[%clk 0:02:15]} 10. Rxa3 {[%clk 0:02:11]}  Bxd3 {[%clk 0:02:12]} 11. cxd3 {[%clk 0:02:10]}  Qxb2 {[%clk 0:02:03]} 12. Rb3 {[%clk 0:02:05]}  Qa2 {[%clk 0:02:04]} 13. Rxb7 {[%clk 0:02:00]}  O-O {[%clk 0:02:04]} 14. O-O {[%clk 0:01:48]}  Rab8 {[%clk 0:02:02]} 15. Rc7 {[%clk 0:01:44]}  Rfc8 {[%clk 0:02:02]} 16. Rxc8+ {[%clk 0:01:36]}  Rxc8 {[%clk 0:02:01]} 17. Qb1 {[%clk 0:01:33]}  Qxb1 {[%clk 0:01:54]} 18. Rxb1 {[%clk 0:01:32]}  Nf5 {[%clk 0:01:46]} 19. g4 {[%clk 0:01:27]}  Ne3 {[%clk 0:01:42]} 20. Nxd4 {[%clk 0:01:22]}  Nxd4 {[%clk 0:01:20]} 21. Bxe3 {[%clk 0:01:21]}  Nc6 {[%clk 0:01:20]} 22. Rb7 {[%clk 0:01:13]}  g5 {[%clk 0:01:16]} 23. fxg5 {[%clk 0:01:03]}  Nxe5 {[%clk 0:01:15]} 24. Bxa7 {[%clk 0:00:57]}  Nxd3 {[%clk 0:01:07]} 25. Rb8 {[%clk 0:00:53]}  Rxb8 {[%clk 0:01:05]} 26. Bxb8 {[%clk 0:00:51]}  Nb4 {[%clk 0:00:56]} 27. a5 {[%clk 0:00:48]}  Kg7 {[%clk 0:00:51]} 28. Bd6 {[%clk 0:00:44]}  Na6 {[%clk 0:00:44]} 29. Be7 {[%clk 0:00:36]}  h6 {[%clk 0:00:40]} 30. gxh6+ {[%clk 0:00:30]}  Kxh6 {[%clk 0:00:40]} 31. h4 {[%clk 0:00:30]}  e5 {[%clk 0:00:38]} 32. Kf2 {[%clk 0:00:30]}  Kg6 {[%clk 0:00:35]} 33. Ke3 {[%clk 0:00:29]}  f5 {[%clk 0:00:32]} 34. h5+ {[%clk 0:00:18]}  Kf7 {[%clk 0:00:22]} 35. Bd6 {[%clk 0:00:18]}  fxg4 {[%clk 0:00:17]} 36. Bxe5 {[%clk 0:00:15]}  Kg8 {[%clk 0:00:16]} 37. Kf4 {[%clk 0:00:14]}  Kh7 {[%clk 0:00:14]} 38. Kxg4 {[%clk 0:00:15]}  Nc5 {[%clk 0:00:11]} 39. Bf4 {[%clk 0:00:14]}  d4 {[%clk 0:00:09]} 40. Kf3 {[%clk 0:00:14]}  d3 {[%clk 0:00:09]} 41. Ke3 {[%clk 0:00:12]}  d2 {[%clk 0:00:02]} 42. Kxd2 {[%clk 0:00:12]}  Nb3+ {[%clk 0:00:02]} 43. Kd3 {[%clk 0:00:08]}  Nxa5 {[%clk 0:00:03]} 44. Kd4 {[%clk 0:00:06]}  Nc6+ {[%clk 0:00:03]} 45. Kd5 {[%clk 0:00:06]}  Ne7+ {[%clk 0:00:04]} 46. Ke6 {[%clk 0:00:07]}  Ng6 {[%clk 0:00:04]} 47. Be3 {[%clk 0:00:06]}  Nf8+ {[%clk 0:00:03]} 48. Kf7 {[%clk 0:00:06]}  Nd7 {[%clk 0:00:03]} 49. Bd2 {[%clk 0:00:06]}  Ne5+ {[%clk 0:00:03]} 50. Ke6 {[%clk 0:00:05]}  Nf3 {[%clk 0:00:02]} 51. Bf4 {[%clk 0:00:05]}  Nd4+ {[%clk 0:00:02]} 52. Kd5 {[%clk 0:00:05]}  Ne2 {[%clk 0:00:02]} 53. Bg5 {[%clk 0:00:05]}  Ng3 {[%clk 0:00:02]} 54. h6 {[%clk 0:00:05]}  Nf5 {[%clk 0:00:02]} 55. Ke5 {[%clk 0:00:05]}  Nxh6 {[%clk 0:00:03]} 1/2-1/2


[Site "https://www.chess.com"]

[Event "Titled Tuesday Blitz June 28 Late 2022"]
[White "Pulpan, Jakub"]
[Black "Abdrlauf, Elham"]
[WhiteFideId "302759"]
[BlackFideId "1533533"]
[WhiteElo "2495"]
[BlackElo "2403"]
[Result "0-1"]
[Round "06"]
[TimeControl "180+1"]
[Date "2022.06.28"]
[WhiteClock "0:00:10"]
[BlackClock "0:00:09"]

1. Nf3 {[%clk 0:03:00]}  d5 {[%clk 0:02:58]} 2. b3 {[%clk 0:02:59]}  Nf6 {[%clk 0:02:58]} 3. Bb2 {[%clk 0:02:59]}  e6 {[%clk 0:02:59]} 4. e3 {[%clk 0:02:58]}  Be7 {[%clk 0:03:00]} 5. d4 {[%clk 0:02:58]}  O-O {[%clk 0:03:00]} 6. Nbd2 {[%clk 0:02:59]}  c5 {[%clk 0:03:01]} 7. dxc5 {[%clk 0:03:00]}  Bxc5 {[%clk 0:03:01]} 8. c4 {[%clk 0:03:00]}  Nc6 {[%clk 0:03:01]} 9. Be2 {[%clk 0:02:59]}  b6 {[%clk 0:02:48]} 10. O-O {[%clk 0:02:58]}  Bb7 {[%clk 0:02:49]} 11. Ne5 {[%clk 0:02:49]}  Nxe5 {[%clk 0:02:46]} 12. Bxe5 {[%clk 0:02:50]}  Qe7 {[%clk 0:02:44]} 13. Bf3 {[%clk 0:02:45]}  Rad8 {[%clk 0:02:44]} 14. Qe2 {[%clk 0:02:41]}  Ne4 {[%clk 0:01:49]} 15. cxd5 {[%clk 0:02:29]}  exd5 {[%clk 0:01:50]} 16. Bb2 {[%clk 0:02:24]}  Nxd2 {[%clk 0:01:24]} 17. Qxd2 {[%clk 0:02:24]}  d4 {[%clk 0:01:25]} 18. exd4 {[%clk 0:01:37]}  Bxf3 {[%clk 0:01:24]} 19. gxf3 {[%clk 0:01:38]}  Qf6 {[%clk 0:01:13]} 20. Qe3 {[%clk 0:01:19]}  Rfe8 {[%clk 0:01:06]} 21. Qd3 {[%clk 0:01:09]}  Bxd4 {[%clk 0:00:54]} 22. Bxd4 {[%clk 0:00:55]}  Rxd4 {[%clk 0:00:54]} 23. Rfe1 {[%clk 0:00:50]}  Red8 {[%clk 0:00:51]} 24. Qe2 {[%clk 0:00:45]}  g6 {[%clk 0:00:50]} 25. Rad1 {[%clk 0:00:43]}  Qg5+ {[%clk 0:00:25]} 26. Kh1 {[%clk 0:00:42]}  Rd2 {[%clk 0:00:24]} 27. Rxd2 {[%clk 0:00:33]}  Rxd2 {[%clk 0:00:25]} 28. Qc4 {[%clk 0:00:14]}  Qf6 {[%clk 0:00:13]} 29. Kg2 {[%clk 0:00:04]}  Kg7 {[%clk 0:00:05]} 30. a4 {[%clk 0:00:02]}  Qg5+ {[%clk 0:00:03]} 31. Qg4 {[%clk 0:00:02]}  Qf6 {[%clk 0:00:04]} 32. Qe4 {[%clk 0:00:02]}  Rb2 {[%clk 0:00:02]} 33. Re3 {[%clk 0:00:02]}  h5 {[%clk 0:00:03]} 34. h4 {[%clk 0:00:02]}  a5 {[%clk 0:00:03]} 35. Kg3 {[%clk 0:00:02]}  Kg8 {[%clk 0:00:02]} 36. Qe8+ {[%clk 0:00:02]}  Kg7 {[%clk 0:00:02]} 37. Qe4 {[%clk 0:00:02]}  Ra2 {[%clk 0:00:03]} 38. Qe5 {[%clk 0:00:02]}  Ra1 {[%clk 0:00:01]} 39. Qxf6+ {[%clk 0:00:03]}  Kxf6 {[%clk 0:00:02]} 40. Rc3 {[%clk 0:00:03]}  Re1 {[%clk 0:00:02]} 41. Rc7 {[%clk 0:00:02]}  Re6 {[%clk 0:00:02]} 42. Rb7 {[%clk 0:00:03]}  Kg7 {[%clk 0:00:02]} 43. Kf4 {[%clk 0:00:03]}  Rf6+ {[%clk 0:00:03]} 44. Kg3 {[%clk 0:00:04]}  Kf8 {[%clk 0:00:03]} 45. Rb8+ {[%clk 0:00:04]}  Ke7 {[%clk 0:00:04]} 46. Rb7+ {[%clk 0:00:05]}  Kd8 {[%clk 0:00:05]} 47. f4 {[%clk 0:00:05]}  Kc8 {[%clk 0:00:05]} 48. Re7 {[%clk 0:00:06]}  Kd8 {[%clk 0:00:06]} 49. Rb7 {[%clk 0:00:06]}  Ke8 {[%clk 0:00:06]} 50. Kf3 {[%clk 0:00:06]}  Kf8 {[%clk 0:00:06]} 51. Ke4 {[%clk 0:00:06]}  Re6+ {[%clk 0:00:07]} 52. Kf3 {[%clk 0:00:07]}  Kg7 {[%clk 0:00:07]} 53. Kg3 {[%clk 0:00:07]}  Kf6 {[%clk 0:00:07]} 54. Kf3 {[%clk 0:00:08]}  Rc6 {[%clk 0:00:07]} 55. Kg2 {[%clk 0:00:07]}  Ke6 {[%clk 0:00:08]} 56. f3 {[%clk 0:00:06]}  f6 {[%clk 0:00:08]} 57. Kg3 {[%clk 0:00:06]}  Kf5 {[%clk 0:00:08]} 58. Rb8 {[%clk 0:00:06]}  Ke6 {[%clk 0:00:07]} 59. Rb7 {[%clk 0:00:05]}  f5 {[%clk 0:00:04]} 60. Rg7 {[%clk 0:00:04]}  Kd5 {[%clk 0:00:04]} 61. Re7 {[%clk 0:00:04]}  Kc5 {[%clk 0:00:04]} 62. Re5+ {[%clk 0:00:03]}  Kd6 {[%clk 0:00:04]} 63. Rb5 {[%clk 0:00:03]}  Kc7 {[%clk 0:00:05]} 64. Re5 {[%clk 0:00:04]}  Rc3 {[%clk 0:00:03]} 65. Rb5 {[%clk 0:00:04]}  Kc6 {[%clk 0:00:03]} 66. Kf2 {[%clk 0:00:04]}  Rc5 {[%clk 0:00:03]} 67. Rxc5+ {[%clk 0:00:03]}  Kxc5 {[%clk 0:00:04]} 68. Ke3 {[%clk 0:00:04]}  Kb4 {[%clk 0:00:05]} 69. Kd4 {[%clk 0:00:05]}  Kxb3 {[%clk 0:00:05]} 70. Ke5 {[%clk 0:00:06]}  Kxa4 {[%clk 0:00:06]} 71. Kf6 {[%clk 0:00:06]}  b5 {[%clk 0:00:06]} 72. Kxg6 {[%clk 0:00:06]}  b4 {[%clk 0:00:07]} 73. Kxh5 {[%clk 0:00:07]}  b3 {[%clk 0:00:08]} 74. Kg6 {[%clk 0:00:08]}  b2 {[%clk 0:00:09]} 75. h5 {[%clk 0:00:09]}  b1=Q {[%clk 0:00:10]} 76. h6 {[%clk 0:00:10]}  Qg1+ {[%clk 0:00:10]} 77. Kf7 {[%clk 0:00:10]}  Qh2 {[%clk 0:00:10]} 78. Kg7 {[%clk 0:00:10]}  Qg2+ {[%clk 0:00:09]} 79. Kf6 {[%clk 0:00:10]}  Qxf3 {[%clk 0:00:09]} 80. Kxf5 {[%clk 0:00:10]}  Qh5+ {[%clk 0:00:09]} 0-1


[Site "https://www.chess.com"]

[Event "Titled Tuesday Blitz June 28 Late 2022"]
[White "Rasulov, Vugar"]
[Black "Ambartsumova, Karina"]
[WhiteFideId "13402390"]
[BlackFideId "4166299"]
[WhiteElo "2560"]
[BlackElo "2262"]
[Result "1-0"]
[Round "06"]
[TimeControl "180+1"]
[Date "2022.06.28"]
[WhiteClock "0:00:53"]
[BlackClock "0:00:05"]

1. Nf3 {[%clk 0:03:00]}  Nf6 {[%clk 0:02:59]} 2. g3 {[%clk 0:03:01]}  g6 {[%clk 0:02:59]} 3. Bg2 {[%clk 0:03:02]}  Bg7 {[%clk 0:03:00]} 4. O-O {[%clk 0:03:02]}  O-O {[%clk 0:03:00]} 5. c4 {[%clk 0:03:03]}  d6 {[%clk 0:03:01]} 6. Nc3 {[%clk 0:03:04]}  c6 {[%clk 0:02:58]} 7. d3 {[%clk 0:03:04]}  e5 {[%clk 0:02:58]} 8. Rb1 {[%clk 0:03:04]}  h6 {[%clk 0:02:57]} 9. b4 {[%clk 0:03:04]}  Be6 {[%clk 0:02:58]} 10. b5 {[%clk 0:03:04]}  Qc8 {[%clk 0:02:51]} 11. Ba3 {[%clk 0:03:00]}  Rd8 {[%clk 0:02:49]} 12. Nd2 {[%clk 0:03:00]}  Bh3 {[%clk 0:02:46]} 13. bxc6 {[%clk 0:02:55]}  bxc6 {[%clk 0:02:41]} 14. Qb3 {[%clk 0:02:49]}  Bxg2 {[%clk 0:02:38]} 15. Kxg2 {[%clk 0:02:50]}  Na6 {[%clk 0:02:32]} 16. Qb7 {[%clk 0:02:47]}  Rd7 {[%clk 0:02:19]} 17. Qxc8+ {[%clk 0:02:45]}  Rxc8 {[%clk 0:02:20]} 18. Rb3 {[%clk 0:02:35]}  d5 {[%clk 0:02:15]} 19. Rfb1 {[%clk 0:02:35]}  Bf8 {[%clk 0:02:10]} 20. Bxf8 {[%clk 0:02:34]}  Kxf8 {[%clk 0:02:11]} 21. Ra3 {[%clk 0:02:24]}  Nc5 {[%clk 0:02:08]} 22. Nb3 {[%clk 0:02:25]}  Ne6 {[%clk 0:01:59]} 23. Na4 {[%clk 0:02:24]}  Rb7 {[%clk 0:01:53]} 24. Rc1 {[%clk 0:02:23]}  Rd8 {[%clk 0:01:45]} 25. cxd5 {[%clk 0:02:21]}  cxd5 {[%clk 0:01:43]} 26. Nac5 {[%clk 0:02:21]}  Nxc5 {[%clk 0:01:42]} 27. Rxc5 {[%clk 0:02:22]}  Kg7 {[%clk 0:01:13]} 28. Rca5 {[%clk 0:02:21]}  Ra8 {[%clk 0:01:09]} 29. Ra6 {[%clk 0:02:21]}  Rc7 {[%clk 0:01:07]} 30. h3 {[%clk 0:02:09]}  Rc2 {[%clk 0:01:05]} 31. e3 {[%clk 0:02:09]}  Rc3 {[%clk 0:01:01]} 32. Nd2 {[%clk 0:02:04]}  Rxa3 {[%clk 0:00:51]} 33. Rxa3 {[%clk 0:02:05]}  g5 {[%clk 0:00:33]} 34. Nf3 {[%clk 0:02:01]}  e4 {[%clk 0:00:28]} 35. dxe4 {[%clk 0:01:58]}  dxe4 {[%clk 0:00:24]} 36. Nd4 {[%clk 0:01:58]}  h5 {[%clk 0:00:21]} 37. Ra6 {[%clk 0:01:56]}  g4 {[%clk 0:00:20]} 38. hxg4 {[%clk 0:01:52]}  hxg4 {[%clk 0:00:20]} 39. a4 {[%clk 0:01:50]}  Nd5 {[%clk 0:00:16]} 40. Nf5+ {[%clk 0:01:50]}  Kg8 {[%clk 0:00:16]} 41. Nh6+ {[%clk 0:01:49]}  Kg7 {[%clk 0:00:15]} 42. Nxg4 {[%clk 0:01:49]}  Nb4 {[%clk 0:00:15]} 43. Rd6 {[%clk 0:01:49]}  a5 {[%clk 0:00:14]} 44. Nf6 {[%clk 0:01:49]}  Rc8 {[%clk 0:00:06]} 45. Nxe4 {[%clk 0:01:49]}  Rc2 {[%clk 0:00:07]} 46. Rd7 {[%clk 0:01:46]}  Ra2 {[%clk 0:00:07]} 47. Nc5 {[%clk 0:01:43]}  Nc2 {[%clk 0:00:07]} 48. e4 {[%clk 0:01:39]}  Ne1+ {[%clk 0:00:06]} 49. Kf1 {[%clk 0:01:38]}  Nf3 {[%clk 0:00:07]} 50. Ra7 {[%clk 0:01:33]}  Rc2 {[%clk 0:00:05]} 51. Rxa5 {[%clk 0:01:27]}  Nd2+ {[%clk 0:00:05]} 52. Kg2 {[%clk 0:01:25]}  Nc4 {[%clk 0:00:05]} 53. Rb5 {[%clk 0:01:19]}  Nd6 {[%clk 0:00:05]} 54. Rb6 {[%clk 0:01:17]}  Nc4 {[%clk 0:00:05]} 55. Rb7 {[%clk 0:01:15]}  Ne3+ {[%clk 0:00:03]} 56. Kf3 {[%clk 0:01:16]}  Nd1 {[%clk 0:00:03]} 57. Nd3 {[%clk 0:01:14]}  Rd2 {[%clk 0:00:03]} 58. Rb3 {[%clk 0:01:14]}  Kf6 {[%clk 0:00:02]} 59. a5 {[%clk 0:01:13]}  Ra2 {[%clk 0:00:03]} 60. Rb6+ {[%clk 0:01:11]}  Kg7 {[%clk 0:00:03]} 61. a6 {[%clk 0:01:11]}  Nc3 {[%clk 0:00:04]} 62. Nf4 {[%clk 0:01:07]}  Ra3 {[%clk 0:00:03]} 63. Nh5+ {[%clk 0:01:06]}  Kh7 {[%clk 0:00:04]} 64. Kf4 {[%clk 0:01:05]}  Ne2+ {[%clk 0:00:03]} 65. Kf5 {[%clk 0:01:02]}  Nd4+ {[%clk 0:00:03]} 66. Kf6 {[%clk 0:01:00]}  Rf3+ {[%clk 0:00:02]} 67. Nf4 {[%clk 0:01:01]}  Ne6 {[%clk 0:00:01]} 68. a7 {[%clk 0:00:59]}  Nxf4 {[%clk 0:00:01]} 69. gxf4 {[%clk 0:00:55]}  Ra3 {[%clk 0:00:01]} 70. Rb7 {[%clk 0:00:56]}  Kg8 {[%clk 0:00:01]} 71. e5 {[%clk 0:00:55]}  Ra6+ {[%clk 0:00:02]} 72. Ke7 {[%clk 0:00:55]}  Kg7 {[%clk 0:00:02]} 73. f5 {[%clk 0:00:56]}  Kh6 {[%clk 0:00:03]} 74. Kxf7 {[%clk 0:00:56]}  Kg5 {[%clk 0:00:03]} 75. e6 {[%clk 0:00:55]}  Kxf5 {[%clk 0:00:04]} 76. e7 {[%clk 0:00:55]}  Rxa7 {[%clk 0:00:05]} 77. Rxa7 {[%clk 0:00:53]} 1-0


[Site "https://www.chess.com"]

[Event "Titled Tuesday Blitz June 28 Late 2022"]
[White "Ricaurte Lopez, Juan Carlos"]
[Black "Mickiewicz, Piotr"]
[WhiteFideId "3600327"]
[BlackFideId "1114891"]
[WhiteElo "2209"]
[BlackElo "2209"]
[Result "0-1"]
[Round "06"]
[TimeControl "180+1"]
[Date "2022.06.29"]
[WhiteClock "0:00:01"]
[BlackClock "0:01:10"]

1. e4 {[%clk 0:02:57]}  c6 {[%clk 0:02:57]} 2. d4 {[%clk 0:02:56]}  d5 {[%clk 0:02:57]} 3. exd5 {[%clk 0:02:56]}  cxd5 {[%clk 0:02:57]} 4. c4 {[%clk 0:02:57]}  Nf6 {[%clk 0:02:55]} 5. Nc3 {[%clk 0:02:56]}  e6 {[%clk 0:02:55]} 6. Nf3 {[%clk 0:02:55]}  Nc6 {[%clk 0:02:51]} 7. Bg5 {[%clk 0:02:50]}  Be7 {[%clk 0:02:46]} 8. a3 {[%clk 0:02:49]}  O-O {[%clk 0:02:45]} 9. Rc1 {[%clk 0:02:48]}  h6 {[%clk 0:02:33]} 10. Bf4 {[%clk 0:02:43]}  b6 {[%clk 0:02:26]} 11. cxd5 {[%clk 0:02:31]}  Nxd5 {[%clk 0:02:25]} 12. Nxd5 {[%clk 0:02:21]}  Qxd5 {[%clk 0:02:26]} 13. Bd3 {[%clk 0:02:19]}  Bb7 {[%clk 0:02:23]} 14. O-O {[%clk 0:01:17]}  Nxd4 {[%clk 0:02:22]} 15. Bh7+ {[%clk 0:01:16]}  Kxh7 {[%clk 0:02:20]} 16. Qxd4 {[%clk 0:01:16]}  Qxd4 {[%clk 0:02:06]} 17. Nxd4 {[%clk 0:01:16]}  Rac8 {[%clk 0:02:06]} 18. Nb5 {[%clk 0:01:12]}  Ba6 {[%clk 0:02:05]} 19. a4 {[%clk 0:01:12]}  Bxb5 {[%clk 0:01:57]} 20. axb5 {[%clk 0:01:12]}  Bc5 {[%clk 0:01:39]} 21. Rc2 {[%clk 0:01:07]}  Rcd8 {[%clk 0:01:33]} 22. Ra1 {[%clk 0:00:54]}  Rd7 {[%clk 0:01:31]} 23. Kf1 {[%clk 0:00:53]}  Rfd8 {[%clk 0:01:30]} 24. Ke2 {[%clk 0:00:50]}  g5 {[%clk 0:01:29]} 25. Bd2 {[%clk 0:00:36]}  Bxf2 {[%clk 0:01:28]} 26. Kxf2 {[%clk 0:00:30]}  Rxd2+ {[%clk 0:01:28]} 27. Rxd2 {[%clk 0:00:30]}  Rxd2+ {[%clk 0:01:28]} 28. Kf3 {[%clk 0:00:30]}  Rxb2 {[%clk 0:01:27]} 29. Rxa7 {[%clk 0:00:30]}  Kg6 {[%clk 0:01:27]} 30. h4 {[%clk 0:00:12]}  Rb3+ {[%clk 0:01:25]} 31. Kg4 {[%clk 0:00:04]}  Rb4+ {[%clk 0:01:24]} 32. Kg3 {[%clk 0:00:01]}  gxh4+ {[%clk 0:01:18]} 33. Kh3 {[%clk 0:00:01]}  f6 {[%clk 0:01:10]} 0-1


[Site "https://www.chess.com"]

[Event "Titled Tuesday Blitz June 28 Late 2022"]
[White "Romanchuk, Viktor"]
[Black "Melikhov, Evgeny V."]
[WhiteFideId "14109271"]
[BlackFideId "4122046"]
[WhiteElo "2242"]
[BlackElo "1904"]
[Result "1-0"]
[Round "06"]
[TimeControl "180+1"]
[Date "2022.06.29"]
[WhiteClock "0:00:21"]
[BlackClock "0:00:02"]

1. d4 {[%clk 0:03:00]}  Nf6 {[%clk 0:02:59]} 2. c4 {[%clk 0:03:01]}  e6 {[%clk 0:02:59]} 3. Nc3 {[%clk 0:03:01]}  Bb4 {[%clk 0:02:59]} 4. e3 {[%clk 0:03:01]}  b6 {[%clk 0:02:59]} 5. Ne2 {[%clk 0:03:01]}  Ba6 {[%clk 0:02:59]} 6. Ng3 {[%clk 0:03:01]}  O-O {[%clk 0:02:51]} 7. Bd3 {[%clk 0:02:58]}  d5 {[%clk 0:02:49]} 8. cxd5 {[%clk 0:02:57]}  Bxd3 {[%clk 0:02:48]} 9. Qxd3 {[%clk 0:02:58]}  exd5 {[%clk 0:02:48]} 10. O-O {[%clk 0:02:58]}  c5 {[%clk 0:02:41]} 11. dxc5 {[%clk 0:02:53]}  bxc5 {[%clk 0:02:37]} 12. Rd1 {[%clk 0:02:52]}  Nc6 {[%clk 0:02:18]} 13. Nxd5 {[%clk 0:02:34]}  Nxd5 {[%clk 0:02:15]} 14. Qxd5 {[%clk 0:02:35]}  Qxd5 {[%clk 0:02:15]} 15. Rxd5 {[%clk 0:02:36]}  Rfd8 {[%clk 0:02:14]} 16. e4 {[%clk 0:02:37]}  Nd4 {[%clk 0:01:51]} 17. a3 {[%clk 0:01:54]}  Nb3 {[%clk 0:01:18]} 18. Rb1 {[%clk 0:01:47]}  Ba5 {[%clk 0:01:07]} 19. Rxd8+ {[%clk 0:01:33]}  Rxd8 {[%clk 0:01:06]} 20. Be3 {[%clk 0:01:33]}  g6 {[%clk 0:00:59]} 21. f3 {[%clk 0:01:11]}  Bd2 {[%clk 0:00:55]} 22. Kf2 {[%clk 0:01:04]}  Bxe3+ {[%clk 0:00:54]} 23. Kxe3 {[%clk 0:01:04]}  Rd2 {[%clk 0:00:54]} 24. Ne2 {[%clk 0:01:02]}  c4 {[%clk 0:00:47]} 25. h4 {[%clk 0:00:56]}  h5 {[%clk 0:00:46]} 26. g4 {[%clk 0:00:55]}  Kf8 {[%clk 0:00:42]} 27. gxh5 {[%clk 0:00:55]}  gxh5 {[%clk 0:00:42]} 28. Nf4 {[%clk 0:00:52]}  Rh2 {[%clk 0:00:34]} 29. Nxh5 {[%clk 0:00:44]}  Rxh4 {[%clk 0:00:34]} 30. Nf4 {[%clk 0:00:43]}  Rh2 {[%clk 0:00:34]} 31. Ne2 {[%clk 0:00:43]}  Ke7 {[%clk 0:00:32]} 32. Rd1 {[%clk 0:00:42]}  Rh8 {[%clk 0:00:26]} 33. Rd5 {[%clk 0:00:36]}  Rb8 {[%clk 0:00:25]} 34. Nc3 {[%clk 0:00:33]}  a6 {[%clk 0:00:18]} 35. Re5+ {[%clk 0:00:23]}  Kf6 {[%clk 0:00:15]} 36. Rh5 {[%clk 0:00:23]}  Nc1 {[%clk 0:00:12]} 37. Nd5+ {[%clk 0:00:21]}  Kg7 {[%clk 0:00:12]} 38. Rh2 {[%clk 0:00:22]}  Nd3 {[%clk 0:00:10]} 39. b4 {[%clk 0:00:22]}  cxb3 {[%clk 0:00:10]} 40. Kxd3 {[%clk 0:00:21]}  b2 {[%clk 0:00:11]} 41. Nc3 {[%clk 0:00:22]}  b1=Q+ {[%clk 0:00:11]} 42. Nxb1 {[%clk 0:00:21]}  Rxb1 {[%clk 0:00:12]} 43. Kc3 {[%clk 0:00:21]}  Rf1 {[%clk 0:00:10]} 44. Rh3 {[%clk 0:00:21]}  a5 {[%clk 0:00:10]} 45. Kb3 {[%clk 0:00:21]}  Rb1+ {[%clk 0:00:09]} 46. Ka4 {[%clk 0:00:21]}  Ra1 {[%clk 0:00:08]} 47. Rh5 {[%clk 0:00:20]}  Kg6 {[%clk 0:00:05]} 48. Rxa5 {[%clk 0:00:19]}  Rf1 {[%clk 0:00:02]} 49. Rf5 {[%clk 0:00:20]}  f6 {[%clk 0:00:02]} 50. Kb3 {[%clk 0:00:19]}  Rb1+ {[%clk 0:00:02]} 51. Ka2 {[%clk 0:00:19]}  Rb8 {[%clk 0:00:02]} 52. a4 {[%clk 0:00:19]}  Ra8 {[%clk 0:00:02]} 53. a5 {[%clk 0:00:20]}  Kf7 {[%clk 0:00:01]} 54. Ka3 {[%clk 0:00:20]}  Ke6 {[%clk 0:00:02]} 55. Ka4 {[%clk 0:00:21]}  Rb8 {[%clk 0:00:02]} 56. a6 {[%clk 0:00:21]}  Ra8 {[%clk 0:00:02]} 57. Ka5 {[%clk 0:00:21]} 1-0


[Site "https://www.chess.com"]

[Event "Titled Tuesday Blitz June 28 Late 2022"]
[White "Romero Ruscalleda, Josep"]
[Black "Donatti, Alvaro"]
[WhiteFideId "2231859"]
[BlackFideId "3000303"]
[WhiteElo "2269"]
[BlackElo "2138"]
[Result "1-0"]
[Round "06"]
[TimeControl "180+1"]
[Date "2022.06.29"]
[WhiteClock "0:00:22"]
[BlackClock "0:00:06"]

1. e4 {[%clk 0:03:00]}  c5 {[%clk 0:02:59]} 2. c3 {[%clk 0:03:00]}  d5 {[%clk 0:02:57]} 3. exd5 {[%clk 0:03:00]}  Qxd5 {[%clk 0:02:57]} 4. d4 {[%clk 0:03:01]}  Nc6 {[%clk 0:02:54]} 5. Nf3 {[%clk 0:03:00]}  Bg4 {[%clk 0:02:54]} 6. Be2 {[%clk 0:02:59]}  e6 {[%clk 0:02:53]} 7. Be3 {[%clk 0:02:57]}  cxd4 {[%clk 0:02:45]} 8. cxd4 {[%clk 0:02:57]}  Nf6 {[%clk 0:02:44]} 9. Nc3 {[%clk 0:02:57]}  Bb4 {[%clk 0:02:44]} 10. O-O {[%clk 0:02:57]}  Bxc3 {[%clk 0:02:43]} 11. bxc3 {[%clk 0:02:57]}  O-O {[%clk 0:02:43]} 12. h3 {[%clk 0:02:51]}  Bh5 {[%clk 0:02:42]} 13. Qb3 {[%clk 0:02:45]}  Na5 {[%clk 0:02:30]} 14. Qa4 {[%clk 0:02:34]}  Rac8 {[%clk 0:02:23]} 15. Rac1 {[%clk 0:02:31]}  Nc4 {[%clk 0:02:21]} 16. Qb3 {[%clk 0:01:51]}  b5 {[%clk 0:01:41]} 17. g4 {[%clk 0:01:43]}  Bg6 {[%clk 0:01:34]} 18. Nd2 {[%clk 0:01:26]}  Nxe3 {[%clk 0:01:24]} 19. fxe3 {[%clk 0:01:23]}  Qg5 {[%clk 0:01:24]} 20. Rf3 {[%clk 0:01:04]}  Ne4 {[%clk 0:01:17]} 21. Nxe4 {[%clk 0:00:53]}  Bxe4 {[%clk 0:01:17]} 22. Rg3 {[%clk 0:00:54]}  f5 {[%clk 0:01:07]} 23. Qxb5 {[%clk 0:00:50]}  Qh4 {[%clk 0:01:04]} 24. Qe5 {[%clk 0:00:48]}  fxg4 {[%clk 0:00:59]} 25. Qxe6+ {[%clk 0:00:46]}  Kh8 {[%clk 0:00:57]} 26. Qxg4 {[%clk 0:00:45]}  Qxg4 {[%clk 0:00:48]} 27. Bxg4 {[%clk 0:00:40]}  Rc6 {[%clk 0:00:40]} 28. c4 {[%clk 0:00:37]}  Ra6 {[%clk 0:00:39]} 29. c5 {[%clk 0:00:33]}  Rxa2 {[%clk 0:00:38]} 30. c6 {[%clk 0:00:30]}  h5 {[%clk 0:00:13]} 31. Be6 {[%clk 0:00:24]}  Bxc6 {[%clk 0:00:06]} 32. Rxc6 {[%clk 0:00:23]}  Rb8 {[%clk 0:00:06]} 33. Rc8+ {[%clk 0:00:22]} 1-0


[Site "https://www.chess.com"]

[Event "Titled Tuesday Blitz June 28 Late 2022"]
[White "Shapiro, Daniel"]
[Black "Kovacevic, Radmila"]
[WhiteFideId "2001780"]
[BlackFideId "933171"]
[WhiteElo "2279"]
[BlackElo "2115"]
[Result "0-1"]
[Round "06"]
[TimeControl "180+1"]
[Date "2022.06.29"]
[WhiteClock "0:00:31"]
[BlackClock "0:00:06"]

1. d4 {[%clk 0:03:00]}  e5 {[%clk 0:03:00]} 2. dxe5 {[%clk 0:02:59]}  Nc6 {[%clk 0:03:01]} 3. Bf4 {[%clk 0:02:59]}  Qe7 {[%clk 0:03:01]} 4. Nc3 {[%clk 0:02:58]}  Qb4 {[%clk 0:02:59]} 5. Qc1 {[%clk 0:02:53]}  Nd4 {[%clk 0:02:43]} 6. e3 {[%clk 0:02:39]}  Ne6 {[%clk 0:02:37]} 7. Bg3 {[%clk 0:02:36]}  c6 {[%clk 0:02:34]} 8. Nf3 {[%clk 0:02:33]}  h5 {[%clk 0:02:31]} 9. h3 {[%clk 0:02:28]}  h4 {[%clk 0:02:28]} 10. Bh2 {[%clk 0:02:28]}  Nh6 {[%clk 0:02:24]} 11. Bd3 {[%clk 0:02:27]}  g6 {[%clk 0:02:11]} 12. O-O {[%clk 0:02:25]}  Be7 {[%clk 0:01:58]} 13. a3 {[%clk 0:02:18]}  Qb6 {[%clk 0:01:55]} 14. Ne4 {[%clk 0:02:14]}  Nf5 {[%clk 0:01:49]} 15. Nf6+ {[%clk 0:02:06]}  Kf8 {[%clk 0:01:37]} 16. Ne4 {[%clk 0:02:00]}  Kg7 {[%clk 0:01:21]} 17. Rd1 {[%clk 0:01:59]}  Rh5 {[%clk 0:01:12]} 18. Nd6 {[%clk 0:01:54]}  Nxd6 {[%clk 0:01:05]} 19. exd6 {[%clk 0:01:54]}  Bf6 {[%clk 0:01:04]} 20. c3 {[%clk 0:01:47]}  Nc5 {[%clk 0:00:52]} 21. Bc2 {[%clk 0:01:41]}  a5 {[%clk 0:00:48]} 22. e4 {[%clk 0:01:36]}  Ne6 {[%clk 0:00:35]} 23. e5 {[%clk 0:01:29]}  Bd8 {[%clk 0:00:35]} 24. b4 {[%clk 0:01:22]}  axb4 {[%clk 0:00:26]} 25. axb4 {[%clk 0:01:22]}  Ra6 {[%clk 0:00:24]} 26. Bd3 {[%clk 0:01:20]}  Ra7 {[%clk 0:00:20]} 27. Qb2 {[%clk 0:01:15]}  Ng5 {[%clk 0:00:19]} 28. Be2 {[%clk 0:01:05]}  Ne4 {[%clk 0:00:18]} 29. Bd3 {[%clk 0:00:56]}  Rxa1 {[%clk 0:00:17]} 30. Rxa1 {[%clk 0:00:55]}  Ng3 {[%clk 0:00:16]} 31. Ra8 {[%clk 0:00:50]}  Rf5 {[%clk 0:00:14]} 32. Rxc8 {[%clk 0:00:48]}  Rxf3 {[%clk 0:00:14]} 33. gxf3 {[%clk 0:00:46]}  Bg5 {[%clk 0:00:14]} 34. Kg2 {[%clk 0:00:42]}  Nh5 {[%clk 0:00:12]} 35. Rc7 {[%clk 0:00:35]}  Bf4 {[%clk 0:00:12]} 36. Rxd7 {[%clk 0:00:32]}  Bxh2 {[%clk 0:00:12]} 37. Kxh2 {[%clk 0:00:32]}  Kf8 {[%clk 0:00:10]} 38. Qb3 {[%clk 0:00:31]}  Qxf2+ {[%clk 0:00:06]} 39. Kh1 {[%clk 0:00:31]}  Ng3# {[%clk 0:00:06]} 0-1


[Site "https://www.chess.com"]